lending/lending_fUSD_20250114
["ID","MTS","AMOUNT","RATE_DAILY","PERIOD"]
[348941867,1736881851267,-1382.24,0.00011357,2]
[348941868,1736881851278,-927.07,0.00011357,2]
[348941869,1736881851287,-2929.53,0.00011357,2]
[348941870,1736881851297,-1060.93,0.00011357,2]
[348941871,1736881851308,-1152.51,0.00011357,2]
[348941872,1736881851318,-988.39,0.00011357,2]
[348941873,1736881851327,-555.11,0.00011357,2]
[348941874,1736881851338,-500.0,0.00011357,2]
[348941875,1736881851349,-580.47,0.00011357,2]
[348941876,1736881851360,-513.6,0.00011357,2]
[348941877,1736881851372,-1513.66,0.00011357,2]
[348941878,1736881851382,-5065.36,0.00011358,2]
[348941879,1736881851392,-707.25,0.00011358,2]
[348941880,1736881851403,-500.0,0.00011358,2]
[348941881,1736881851413,-1366.23,0.00011358,2]
[348941882,1736881851423,-577.48,0.00011358,2]
[348941883,1736881851435,-729.17,0.00011358,2]
[348941884,1736881851447,-1006.09,0.00011358,2]
[348941885,1736881851458,-500.0,0.00011358,2]
[348941886,1736881851468,-1513.93,0.00011358,2]
[348941887,1736881851477,-614.1,0.00011364,2]
[348941888,1736881851488,-500.0,0.00011364,2]
[348941889,1736881851499,-547.35,0.00011364,2]
[348941890,1736881851509,-953.99,0.00011364,2]
[348941891,1736881851521,-709.84,0.00011364,2]
[348941892,1736881851533,-500.0,0.00011364,2]
[348941893,1736881851543,-4285.97,0.00011364,2]
[348941894,1736881851554,-500.0,0.00011364,2]
[348941895,1736881851564,-681.82,0.00011364,2]
[348941896,1736881851574,-778.72,0.00011364,2]
[348941897,1736881851584,-1211.06,0.00011364,2]
[348941898,1736881851593,-500.0,0.00011364,2]
[348941899,1736881851603,-702.73,0.00011364,2]
[348941900,1736881851613,-1221.99,0.00011364,2]
[348941901,1736881851622,-1582.66,0.00011364,2]
[348941902,1736881851632,-500.0,0.00011364,2]
[348941903,1736881851642,-1166.93,0.00011364,2]
[348941904,1736881851652,-2147.06,0.00011364,2]
[348941905,1736881851662,-718.96,0.00011364,2]
[348941906,1736881851672,-2000.43,0.00011364,2]
[348941907,1736881851681,-1716.4,0.00011364,2]
[348941908,1736881851691,-520.78,0.00011364,2]
[348941909,1736881851702,-1068.99,0.00011364,2]
[348941910,1736881851716,-1492.01,0.00011364,2]
[348941911,1736881851726,-707.48,0.00011364,2]
[348941912,1736881851736,-994.28,0.00011364,2]
[348941913,1736881851746,-1266.69,0.00011364,2]
[348941914,1736881851756,-1001.34,0.00011364,2]
[348941915,1736881851766,-2004.14,0.00011364,2]
[348941916,1736881851776,-500.0,0.00011365,2]
[348941917,1736881851786,-500.0,0.00011365,2]
[348941918,1736881851796,-500.0,0.00011365,2]
[348941919,1736881851807,-500.0,0.00011365,2]
[348941920,1736881851817,-500.0,0.00011365,2]
[348941921,1736881851828,-500.0,0.00011365,2]
[348941922,1736881851837,-500.0,0.00011365,2]
[348941923,1736881851847,-500.0,0.00011365,2]
[348941924,1736881851858,-500.0,0.00011365,2]
[348941925,1736881851867,-536.21,0.00011365,2]
[348941926,1736881851876,-500.0,0.00011365,2]
[348941927,1736881851886,-500.0,0.00011365,2]
[348941928,1736881851896,-500.0,0.00011365,2]
[348941929,1736881851907,-571.01882894,0.00011365,2]
[348941930,1736881851917,-534.6,0.00011365,2]
[348941931,1736881851926,-500.0,0.00011365,2]
[348941932,1736881851936,-500.0,0.00011365,2]
[348941933,1736881851946,-500.0,0.00011365,2]
[348941934,1736881851956,-522.96,0.00011365,2]
[348941935,1736881851966,-539.4,0.00011365,2]
[348941936,1736881851976,-500.0,0.00011365,2]
[348941937,1736881851985,-639.79508988,0.00011365,2]
[348941938,1736881851995,-500.0,0.00011365,2]
[348941939,1736881852005,-500.0,0.00011365,2]
[348941940,1736881852015,-500.0,0.00011365,2]
[348941941,1736881852024,-500.0,0.00011365,2]
[348941942,1736881852034,-516.37,0.00011365,2]
[348941943,1736881852044,-639.67,0.00011365,2]
[348941944,1736881852054,-500.0,0.00011365,2]
[348941945,1736881852063,-500.0,0.00011365,2]
[348941946,1736881852073,-576.44,0.00011365,2]
[348941947,1736881852082,-500.0,0.00011365,2]
[348941948,1736881852092,-500.0,0.00011365,2]
[348941949,1736881852102,-500.0,0.00011365,2]
[348941950,1736881852111,-500.0,0.00011365,2]
[348941951,1736881852121,-500.0,0.00011365,2]
[348941952,1736881852131,-373.23,0.00011365,2]
[348941953,1736881852141,-500.0,0.00011365,2]
[348941954,1736881852150,-500.0,0.00011365,2]
[348941955,1736881852159,-500.0,0.00011365,2]
[348941956,1736881852169,-500.0,0.00011365,2]
[348941957,1736881852178,-500.0,0.00011365,2]
[348941958,1736881852187,-500.0,0.00011365,2]
[348941959,1736881852197,-738.91,0.00011365,2]
[348941960,1736881852206,-500.0,0.00011365,2]
[348941961,1736881852215,-233.24,0.00011365,2]
[348941962,1736881852227,-500.0,0.00011365,2]
[348941963,1736881852236,-500.0,0.00011365,2]
[348941964,1736881852245,-500.0,0.00011365,2]
[348941965,1736881852255,-500.0,0.00011365,2]
[348941966,1736881852264,-500.0,0.00011365,2]
[348941967,1736881852274,-500.0,0.00011365,2]
[348941968,1736881852284,-500.0,0.00011365,2]
[348941969,1736881852294,-500.0,0.00011365,2]
[348941970,1736881852304,-500.0,0.00011365,2]
[348941971,1736881852315,-500.0,0.00011365,2]
[348941972,1736881852325,-3137.36,0.00011365,2]
[348941973,1736881852336,-500.0,0.00011365,2]
[348941974,1736881852347,-500.0,0.00011365,2]
[348941975,1736881852359,-152.56,0.00011365,2]
[348941976,1736881852372,-532.63,0.00011365,2]
[348941977,1736881852385,-500.0,0.00011365,2]
[348941978,1736881852397,-2211.7,0.00011365,2]
[348941979,1736881852408,-453.89,0.00011365,2]
[348941980,1736881852419,-2718.52,0.00011366,2]
[348941981,1736881852429,-612.31,0.00011366,2]
[348941982,1736881852439,-540.6,0.00011366,2]
[348941983,1736881852450,-679.85,0.00011366,2]
[348941984,1736881852460,-500.0,0.00011366,2]
[348941985,1736881852471,-605.7,0.00011366,2]
[348941986,1736881852481,-675.85,0.00011366,2]
[348941987,1736881852491,-250000.0,0.00011367,4]
[348941988,1736881852501,-151.0,0.00011367,2]
[348941989,1736881852512,-151.0,0.00011367,2]
[348941990,1736881852522,-151.0,0.00011367,2]
[348941991,1736881852533,-1027.23,0.00011369,2]
[348941992,1736881852546,-2411.91,0.00011369,2]
[348941993,1736881852562,-2718.52,0.00011399,2]
[348941994,1736881852572,-900.0,0.000114,4]
[348941995,1736881852582,-1946.7533385,0.00011421,2]
[348941996,1736881852591,-429.93842545,0.00011422,2]
[348941997,1736881852603,-285.34496608,0.00011426,2]
[348941998,1736881852613,-3000.0,0.0001144,2]
[348941999,1736881852622,-189.53687961,0.00011447,2]
[348942000,1736881852632,-531.59858916,0.00011487,2]
[348942001,1736881852643,-285.34496608,0.00011496,2]
[348942002,1736881852654,-159.0,0.000115,2]
[348942003,1736881852664,-1200.0,0.000115,4]
[348942004,1736881852674,-2751.0,0.00011507,2]
[348942005,1736881852684,-1946.7533385,0.00011543,2]
[348942006,1736881852693,-285.34496608,0.00011566,2]
[348942007,1736881852703,-1500.0,0.000116,4]
[348942008,1736881852713,-500.0,0.00011604,2]
[348942009,1736881852724,-500.0,0.00011604,2]
[348942010,1736881852733,-459.45517744,0.00011604,2]
[348942011,1736881852743,-500.0,0.00011604,2]
[348942012,1736881852755,-500.0,0.00011604,2]
[348942013,1736881852765,-500.0,0.00011604,2]
[348942014,1736881852775,-500.0,0.00011604,2]
[348942015,1736881852785,-500.0,0.00011604,2]
[348942016,1736881852795,-500.0,0.00011604,2]
[348942017,1736881852804,-500.0,0.00011604,2]
[348942018,1736881852815,-500.0,0.00011604,2]
[348942019,1736881852825,-500.0,0.00011604,2]
[348942020,1736881852835,-500.0,0.00011604,2]
[348942021,1736881852845,-500.0,0.00011604,2]
[348942022,1736881852855,-547.99,0.00011604,2]
[348942023,1736881852865,-500.0,0.00011604,2]
[348942024,1736881852874,-500.0,0.00011604,2]
[348942025,1736881852884,-559.05,0.00011604,2]
[348942026,1736881852895,-500.0,0.00011604,2]
[348942027,1736881852905,-500.0,0.00011604,2]
[348942028,1736881852914,-500.0,0.00011604,2]
[348942029,1736881852925,-500.0,0.00011604,2]
[348942030,1736881852935,-500.0,0.00011604,2]
[348942031,1736881852945,-500.0,0.00011604,2]
[348942032,1736881852955,-643.92,0.00011604,2]
[348942033,1736881852966,-521.46,0.00011604,2]
[348942034,1736881852976,-500.0,0.00011604,2]
[348942035,1736881852986,-500.0,0.00011604,2]
[348942036,1736881852995,-371.97,0.00011604,2]
[348942037,1736881853005,-502.61,0.00011604,2]
[348942038,1736881853015,-386.24,0.00011604,2]
[348942039,1736881853025,-560.47,0.00011604,2]
[348942040,1736881853035,-500.0,0.00011604,2]
[348942041,1736881853044,-500.0,0.00011604,2]
[348942042,1736881853054,-646.88,0.00011604,2]
[348942043,1736881853065,-500.0,0.00011604,2]
[348942044,1736881853075,-488.134794,0.0001163,2]
[348942045,1736881853085,-2555.84,0.0001163,2]
[348942046,1736881853095,-913.47,0.0001163,2]
[348942047,1736881853105,-500.0,0.0001163,2]
[348942048,1736881853296,-296.03710086,0.0001163,2]
[348942049,1736881853307,-2318.45,0.0001163,2]
[348942050,1736881853318,-500.0,0.0001163,2]
[348942051,1736881853328,-641.58,0.0001163,2]
[348942052,1736881853337,-821.66,0.0001163,2]
[348942053,1736881853347,-500.0,0.00011631,2]
[348942054,1736881853357,-579.02,0.00011631,2]
[348942055,1736881853371,-780.5,0.00011631,2]
[348942056,1736881853381,-578.24,0.00011631,2]
[348942057,1736881853391,-1807.21,0.00011631,2]
[348942058,1736881853400,-691.18,0.00011631,2]
[348942059,1736881853410,-500.0,0.00011631,2]
[348942060,1736881853419,-2002.8,0.00011631,2]
[348942061,1736881853429,-500.0,0.00011631,2]
[348942062,1736881853438,-1282.75,0.00011631,2]
[348942063,1736881853451,-500.0,0.00011631,2]
[348942064,1736881853461,-2384.22,0.00011631,2]
[348942065,1736881853471,-971.7,0.00011631,2]
[348942066,1736881853480,-802.97,0.00011631,2]
[348942067,1736881853490,-534.8,0.00011631,2]
[348942068,1736881853500,-994.67,0.00011631,2]
[348942069,1736881853509,-786.05,0.00011631,2]
[348942070,1736881853520,-1382.24,0.00011631,2]
[348942071,1736881853530,-927.07,0.00011631,2]
[348942072,1736881853541,-2929.53,0.00011631,2]
[348942073,1736881853551,-1060.93,0.00011631,2]
[348942074,1736881853561,-1152.51,0.00011631,2]
[348942075,1736881853570,-988.39,0.00011631,2]
[348942076,1736881853580,-555.11,0.00011631,2]
[348942077,1736881853590,-500.0,0.00011631,2]
[348942078,1736881853600,-580.47,0.00011631,2]
[348942079,1736881853611,-513.6,0.00011631,2]
[348942080,1736881853620,-1513.66,0.00011631,2]
[348942081,1736881853630,-5065.36,0.00011632,2]
[348942082,1736881853639,-707.25,0.00011632,2]
[348942083,1736881853649,-500.0,0.00011632,2]
[348942084,1736881853659,-1366.23,0.00011632,2]
[348942085,1736881853668,-577.48,0.00011632,2]
[348942086,1736881853678,-729.17,0.00011632,2]
[348942087,1736881853688,-1006.09,0.00011632,2]
[348942088,1736881853697,-500.0,0.00011632,2]
[348942089,1736881853708,-1513.93,0.00011632,2]
[348942090,1736881853718,-285.34496608,0.00011636,2]
[348942091,1736881853728,-614.1,0.00011638,2]
[348942092,1736881853738,-500.0,0.00011638,2]
[348942093,1736881853748,-547.35,0.00011638,2]
[348942094,1736881853758,-953.99,0.00011638,2]
[348942095,1736881853767,-709.84,0.00011638,2]
[348942096,1736881853778,-500.0,0.00011638,2]
[348942097,1736881853788,-4285.97,0.00011638,2]
[348942098,1736881853798,-500.0,0.00011638,2]
[348942099,1736881853808,-681.82,0.00011638,2]
[348942100,1736881853820,-778.72,0.00011638,2]
[348942101,1736881853831,-1211.06,0.00011638,2]
[348942102,1736881853842,-500.0,0.00011638,2]
[348942103,1736881853852,-702.73,0.00011638,2]
[348942104,1736881853861,-1221.99,0.00011638,2]
[348942105,1736881853870,-1582.66,0.00011638,2]
[348942106,1736881853880,-500.0,0.00011638,2]
[348942107,1736881853891,-1166.93,0.00011638,2]
[348942108,1736881853902,-2147.06,0.00011638,2]
[348942109,1736881853912,-718.96,0.00011638,2]
[348942110,1736881853921,-2000.43,0.00011638,2]
[348942111,1736881853931,-1716.4,0.00011638,2]
[348942112,1736881853941,-520.78,0.00011638,2]
[348942113,1736881853951,-1068.99,0.00011638,2]
[348942114,1736881853961,-1492.01,0.00011638,2]
[348942115,1736881853972,-707.48,0.00011638,2]
[348942116,1736881853981,-994.28,0.00011638,2]
[348942117,1736881853991,-1266.69,0.00011638,2]
[348942118,1736881854000,-1001.34,0.00011638,2]
[348942119,1736881854011,-2004.14,0.00011638,2]
[348942120,1736881854021,-500.0,0.00011639,2]
[348942121,1736881854031,-500.0,0.00011639,2]
[348942122,1736881854040,-500.0,0.00011639,2]
[348942123,1736881854051,-500.0,0.00011639,2]
[348942124,1736881854061,-500.0,0.00011639,2]
[348942125,1736881854072,-500.0,0.00011639,2]
[348942126,1736881854081,-500.0,0.00011639,2]
[348942127,1736881854091,-500.0,0.00011639,2]
[348942128,1736881854100,-536.21,0.00011639,2]
[348942129,1736881854110,-500.0,0.00011639,2]
[348942130,1736881854120,-500.0,0.00011639,2]
[348942131,1736881854130,-534.6,0.00011639,2]
[348942132,1736881854139,-500.0,0.00011639,2]
[348942133,1736881854149,-500.0,0.00011639,2]
[348942134,1736881854159,-500.0,0.00011639,2]
[348942135,1736881854169,-522.96,0.00011639,2]
[348942136,1736881854179,-500.0,0.00011639,2]
[348942137,1736881854188,-500.0,0.00011639,2]
[348942138,1736881854198,-500.0,0.00011639,2]
[348942139,1736881854208,-500.0,0.00011639,2]
[348942140,1736881854218,-516.37,0.00011639,2]
[348942141,1736881854228,-639.67,0.00011639,2]
[348942142,1736881854240,-578.49713225,0.00011639,2]
[348942143,1736881854250,-500.0,0.00011639,2]
[348942144,1736881854260,-500.0,0.00011639,2]
[348942145,1736881854269,-500.0,0.00011639,2]
[348942146,1736881854279,-500.0,0.00011639,2]
[348942147,1736881854290,-500.0,0.00011639,2]
[348942148,1736881854299,-500.0,0.00011639,2]
[348942149,1736881854310,-500.0,0.00011639,2]
[348942150,1736881854320,-500.0,0.00011639,2]
[348942151,1736881854330,-500.0,0.00011639,2]
[348942152,1736881854339,-500.0,0.00011639,2]
[348942153,1736881854349,-500.0,0.00011639,2]
[348942154,1736881854360,-738.91,0.00011639,2]
[348942155,1736881854373,-500.0,0.00011639,2]
[348942156,1736881854382,-500.0,0.00011639,2]
[348942157,1736881854392,-500.0,0.00011639,2]
[348942158,1736881854402,-500.0,0.00011639,2]
[348942159,1736881854411,-500.0,0.00011639,2]
[348942160,1736881854421,-500.0,0.00011639,2]
[348942161,1736881854430,-500.0,0.00011639,2]
[348942162,1736881854441,-500.0,0.00011639,2]
[348942163,1736881854450,-500.0,0.00011639,2]
[348942164,1736881854460,-500.0,0.00011639,2]
[348942165,1736881854471,-502.13,0.00011639,2]
[348942166,1736881854480,-3137.36,0.00011639,2]
[348942167,1736881854490,-500.0,0.00011639,2]
[348942168,1736881854500,-532.63,0.00011639,2]
[348942169,1736881854510,-500.0,0.00011639,2]
[348942170,1736881854520,-2211.7,0.00011639,2]
[348942171,1736881854530,-612.31,0.0001164,2]
[348942172,1736881854540,-540.6,0.0001164,2]
[348942173,1736881854550,-679.85,0.0001164,2]
[348942174,1736881854560,-605.7,0.0001164,2]
[348942175,1736881854570,-675.85,0.0001164,2]
[348942176,1736881854579,-151.0,0.00011643,2]
[348942177,1736881854589,-1027.23,0.00011643,2]
[348942178,1736881854599,-2411.91,0.00011643,2]
[348942179,1736881854608,-189.53687961,0.00011698,2]
[348942180,1736881854618,-300.0,0.000117,4]
[348942181,1736881854627,-285.34496608,0.00011707,2]
[348942182,1736881854637,-188.66,0.00011712,2]
[348942183,1736881854647,-5329.19355044,0.00011777,2]
[348942184,1736881854657,-251.0251732,0.00011777,2]
[348942185,1736881854666,-285.34496608,0.00011777,2]
[348942186,1736881854675,-500.0,0.0001178,2]
[348942187,1736881854685,-1700.0,0.0001178,2]
[348942188,1736881854695,-4700.0,0.0001178,2]
[348942189,1736881854704,-300.0,0.000118,4]
[348942190,1736881854714,-531.59858916,0.00011858,2]
[348942191,1736881854724,-172.60710238,0.00011867,2]
[348942192,1736881854734,-1320734.83698161,0.00011877,4]
[348942193,1736881854961,-4584.2756899,0.00011877,4]
[348942194,1736881854974,-687.94347,0.00011877,4]
[348942195,1736881854992,-5966.02127954,0.00011877,4]
[348942196,1736881855004,-13765.10006946,0.00011877,4]
[348942197,1736881855016,-26631.96964076,0.00011877,4]
[348942198,1736881855027,-2239.10260521,0.00011877,4]
[348942199,1736881855038,-6729.4,0.00011877,4]
[348942200,1736881855050,-290.92983713,0.00011877,4]
[348942201,1736881855069,-2697.17970122,0.00011877,4]
[348942202,1736881855081,-3727.88,0.00011877,4]
[348942203,1736881855092,-2000.0,0.00011877,4]
[348942204,1736881855681,-163.421941,9.963e-05,2]
[348942205,1736881855691,-163.421941,9.993e-05,2]
[348942206,1736881855700,-13900.727579,0.00011877,4]
[348942207,1736881855713,-1581.57987107,0.00011877,4]
[348942208,1736881855729,-21947.859396,0.00011877,4]
[348942209,1736881855740,-472.60888124,0.00011877,4]
[348942210,1736881855751,-702000.21172273,0.00011877,4]
[348942211,1736881855762,-1920.0,0.00011877,4]
[348942212,1736881855775,-263.98777279,0.00011877,4]
[348942213,1736881855786,-806.10305064,0.00011877,4]
[348942214,1736881855797,-3108.31406692,0.00011877,4]
[348942215,1736881855809,-282.829833,0.00011877,4]
[348942216,1736881855821,-256.09224003,0.00011877,4]
[348942217,1736881855832,-1394.25,0.00011877,4]
[348942218,1736881855858,-163.421941,0.00010511,2]
[348942219,1736881855868,-3783.31642,0.00011877,4]
[348942220,1736881855880,-58177.75366438,0.00011877,4]
[348942221,1736881855896,-1747.8,0.00011877,4]
[348942222,1736881855908,-501.11411037,0.00011877,4]
[348942223,1736881855919,-4721.76,0.00011877,4]
[348942224,1736881855932,-3658.55757206,0.00011877,4]
[348942225,1736881855943,-3595.97560538,0.00011877,4]
[348942226,1736881855956,-1526.43607782,0.00011877,4]
[348942227,1736881855968,-4144.86206469,0.00011877,4]
[348942228,1736881855985,-2291.851,0.00011877,4]
[348942229,1736881856003,-1828.433986,0.00011877,4]
[348942230,1736881856014,-27045.5275716,0.00011877,4]
[348942231,1736881856027,-1325.2359382,0.00011877,4]
[348942232,1736881856048,-500.0,0.00010543,2]
[348942233,1736881856057,-556.34317,0.00011877,4]
[348942234,1736881856068,-466.43999997,0.00011877,4]
[348942236,1736882365302,568.29,8.219e-05,2]
[348942259,1736883031893,-314.81,9.074e-05,2]
[348942261,1736883031903,-250.0,9.3e-05,2]
[348942262,1736883031913,-170.33,9.315e-05,2]
[348942263,1736883031922,-1000.0,9.321e-05,2]
[348942264,1736883031933,-437.17,9.334e-05,2]
[348942265,1736883031942,-160.22235707,9.598e-05,2]
[348942266,1736883031951,-222.93,9.598e-05,2]
[348942267,1736883031961,-711.54775938,9.956e-05,2]
[348942268,1736883031970,-300.0,9.964e-05,2]
[348942269,1736883031979,-150.0,9.964e-05,2]
[348942270,1736883031989,-150.99,9.965e-05,2]
[348942271,1736883031998,-636.01582555,9.965e-05,2]
[348942272,1736883032010,-812.08417445,9.965e-05,2]
[348942273,1736883032019,-299.99,9.965e-05,2]
[348942274,1736883032028,-23.41663464,9.965e-05,2]
[348942275,1736883032040,-1000.09,9.965e-05,2]
[348942276,1736883032055,-1915.62336536,9.965e-05,2]
[348942277,1736883032064,-1111.59,9.965e-05,2]
[348942278,1736883032073,-5376.72,9.965e-05,2]
[348942279,1736883032082,-9965.63,9.967e-05,2]
[348942280,1736883032092,-252.52328124,9.973e-05,2]
[348942281,1736883032101,-154.15890537,9.973e-05,2]
[348942282,1736883032111,-500.0,9.973e-05,2]
[348942283,1736883032120,-252.52328124,9.98e-05,2]
[348942284,1736883032130,-252.52328124,9.987e-05,2]
[348942285,1736883032140,-252.52328124,9.987e-05,2]
[348942286,1736883032149,-1002.0,9.99e-05,2]
[348942287,1736883032159,-1000.0,9.99e-05,2]
[348942288,1736883032169,-1000.0,9.99e-05,2]
[348942289,1736883032178,-1000.0,9.99e-05,2]
[348942290,1736883032187,-160.3045717,9.991e-05,2]
[348942291,1736883032197,-252.52328124,9.994e-05,2]
[348942292,1736883032206,-500.0,0.0001,2]
[348942293,1736883032215,-6634.66673073,0.0001,2]
[348942294,1736883032227,-474.27662681,0.0001,2]
[348942295,1736883032270,-5401.75748297,0.0001,2]
[348942296,1736883032282,-232462.20329028,0.0001,2]
[348942297,1736883032293,-4380.46723962,0.0001,2]
[348942298,1736883032304,-1625.64,0.0001,2]
[348942299,1736883032315,-5300.0,0.0001,2]
[348942300,1736883032328,-4987.28664,0.0001,2]
[348942301,1736883032356,-283267.02400791,0.0001,2]
[348942302,1736883032367,-614.74399974,0.0001,2]
[348942303,1736883032383,-15412.6,0.0001,2]
[348942788,1736883037824,-3321.10134179,0.0001,2]
[348942789,1736883037835,-4926.63449439,0.0001,2]
[348942790,1736883037847,-9653.8,0.0001,2]
[348942795,1736883037938,-16880.33485117,0.0001,2]
[348942797,1736883037950,-359.46753516,0.0001,2]
[348942800,1736883037970,-617.06029197,0.0001,2]
[348942802,1736883037982,-2123.62848612,0.0001,2]
[348942804,1736883037994,-2913.0,0.0001,2]
[348942807,1736883038014,-80509.25207816,0.0001,2]
[348942810,1736883038028,-1001.2,0.0001,2]
[348942818,1736883038126,-424.687658,0.0001,2]
[348942820,1736883038138,-3246.02567614,0.0001,2]
[348942822,1736883038150,-3592.07747779,0.0001,2]
[348942824,1736883038161,-655.655,0.0001,2]
[348943014,1736883039935,-534.0425677,9.99e-05,2]
[348943016,1736883039946,-258.423501,9.99e-05,2]
[348943019,1736883039960,-207.5339313,9.99e-05,2]
[348943021,1736883039969,-28115.20247768,0.0001,2]
[348943023,1736883039981,-472.57697001,0.0001,2]
[348943025,1736883039993,-755.799995,0.0001,2]
[348943028,1736883040004,-2654.64825943,0.0001,2]
[348943030,1736883040016,-501.85,0.0001,2]
[348943032,1736883040028,-378.62,0.0001,2]
[348943034,1736883040040,-329.1100001,0.0001,2]
[348943036,1736883040051,-826.31590867,0.0001,2]
[348943038,1736883040063,-304.166235,0.0001,2]
[348943039,1736883040074,-58300.65231202,0.0001,2]
[348943040,1736883040087,-1000.0,0.0001,2]
[348943041,1736883040098,-1940.35871928,0.0001,2]
[348943042,1736883040109,-3674.76568076,0.0001,2]
[348943043,1736883040121,-608.11212382,0.0001,2]
[348943050,1736883040219,-669.0756367,0.0001,2]
[348943352,1736883043051,-1000.0,9.99e-05,2]
[348943354,1736883043062,-179.56290355,0.0001,2]
[348943367,1736883043177,-494.14,0.0001,2]
[348943370,1736883043190,-615.86812407,0.0001,2]
[348943372,1736883043202,-485.355,0.0001,2]
[348943374,1736883043214,-329.49060594,0.0001,2]
[348943384,1736883043305,-317.25,0.0001,2]
[348943643,1736883045938,-1490.8323986,0.0001,2]
[348943648,1736883045975,-14571.2291888,0.0001,2]
[348943658,1736883046060,-501.041784,0.0001,2]
[348943660,1736883046071,-1931.00382277,0.0001,2]
[348943662,1736883046083,-48536.00000001,0.0001,2]
[348943666,1736883046113,-57022.9465228,0.0001,2]
[348943669,1736883046125,-2653.59834446,0.0001,2]
[348943676,1736883046187,-357.20742,0.0001,2]
[348943678,1736883046199,-2482.50469129,0.0001,2]
[348943680,1736883046211,-6050.9999995,0.0001,2]
[348943683,1736883046222,-2094.95758528,0.0001,2]
[348943685,1736883046235,-983.00737518,0.0001,2]
[348943687,1736883046246,-9461.05,0.0001,2]
[348943920,1736883220567,162.55338544,1.16e-05,2]
[348943922,1736883542946,539.87,8.219e-05,2]
[348943923,1736883696222,1000.0,0.00018,30]
[348943924,1736883721140,500.0,0.0001961,120]
[348943952,1736884232092,-358.35358244,9.195e-05,2]
[348943953,1736884232156,-683.49641756,9.195e-05,2]
[348943954,1736884232166,-170.33,9.377e-05,2]
[348943955,1736884232175,-536.18,9.482e-05,2]
[348943956,1736884232185,-250.0,9.514e-05,2]
[348943957,1736884232195,-292.1,9.567e-05,2]
[348943958,1736884232204,-1000.0,9.583e-05,2]
[348943959,1736884232213,-160.22235708,9.589e-05,2]
[348943960,1736884232223,-150.0,9.589e-05,2]
[348943961,1736884232233,-300.0,9.609e-05,2]
[348943962,1736884232243,-772.32,9.61e-05,2]
[348943963,1736884232253,-1542.9,9.61e-05,2]
[348943964,1736884232262,-772.19,9.61e-05,2]
[348943965,1736884232271,-188.66,9.611e-05,2]
[348943966,1736884232280,-856.57161366,9.76e-05,2]
[348943967,1736884232290,-681.86943803,9.973e-05,2]
[348943968,1736884232299,-681.86943803,9.976e-05,2]
[348943969,1736884232309,-150.99,9.976e-05,2]
[348943970,1736884232322,-299.99,9.976e-05,2]
[348943971,1736884232333,-150.99,9.976e-05,2]
[348943972,1736884232343,-681.86943803,9.977e-05,2]
[348943973,1736884232354,-681.86943803,9.978e-05,2]
[348943974,1736884232364,-681.86943803,9.994e-05,2]
[348943975,1736884232373,-681.86943803,9.999e-05,2]
[348943976,1736884232384,-150.0,9.999e-05,2]
[348943977,1736884232393,-33791.38144808,0.0001,2]
[348943978,1736884232405,-334.78694722,0.0001,2]
[348943979,1736884232416,-8491.23719349,0.0001,2]
[348943980,1736884232425,-500.0,0.0001,2]
[348943981,1736884232434,-531.59858916,0.0001,2]
[348943982,1736884232443,-3000.0,0.0001,2]